lending/lending_fUSD_20250130
["ID","MTS","AMOUNT","RATE_DAILY","PERIOD"]
[350924490,1738204242108,-151.0,0.0002,2]
[350924491,1738204242117,-247.769131,0.0002,2]
[350924492,1738204242127,-151.0,0.0002,2]
[350924493,1738204242137,-151.0,0.0002,2]
[350924494,1738204242147,-164.99476,0.0002,2]
[350924495,1738204242156,-151.0,0.0002,2]
[350924496,1738204242166,-151.0,0.0002,2]
[350924497,1738204242176,-151.0,0.0002,2]
[350924498,1738204242185,-151.0,0.0002,2]
[350924499,1738204242195,-151.0,0.0002,2]
[350924500,1738204242205,-219.128668,0.0002,2]
[350924501,1738204242219,-200.54480843,0.0002,14]
[350924502,1738204242230,-500.0,0.0002,14]
[350924503,1738204242240,-151.0,0.0002,2]
[350924504,1738204242250,-151.0,0.0002,2]
[350924505,1738204242259,-151.0,0.0002,2]
[350924506,1738204242269,-151.0,0.0002,2]
[350924507,1738204242279,-151.0,0.0002,2]
[350924508,1738204242289,-500.0,0.0002,14]
[350924509,1738204242299,-2000.0,0.0002001,2]
[350924510,1738204242308,-2000.0,0.0002001,2]
[350924511,1738204242319,-500.0,0.00020013,2]
[350924512,1738204242329,-500.0,0.00020016,2]
[350924513,1738204242339,-284.59,0.00020016,2]
[350924514,1738204242348,-193.078416,0.00020016,2]
[350924515,1738204242358,-500.0,0.00020016,2]
[350924516,1738204242368,-738.87,0.00020016,2]
[350924517,1738204242379,-176.92259674,0.00020016,2]
[350924518,1738204242388,-500.0,0.00020016,2]
[350924519,1738204242398,-182.593434,0.00020016,2]
[350924520,1738204242410,-151.0,0.00020016,2]
[350924521,1738204242420,-578.37168623,0.00020016,4]
[350924522,1738204242429,-900.94,0.00020016,2]
[350924523,1738204242439,-500.0,0.00020016,2]
[350924524,1738204242449,-172.51881802,0.00020016,4]
[350924525,1738204242459,-446.32041591,0.00020016,2]
[350924526,1738204242468,-500.0,0.00020016,2]
[350924527,1738204242478,-305.78201659,0.00020016,4]
[350924528,1738204242487,-500.0,0.00020016,2]
[350924529,1738204242497,-584.86,0.00020016,2]
[350924530,1738204242508,-500.0,0.00020016,2]
[350924531,1738204242518,-300.0,0.00020016,2]
[350924532,1738204242528,-500.0,0.00020016,2]
[350924533,1738204242537,-3566.96,0.00020016,2]
[350924534,1738204242548,-500.0,0.00020016,2]
[350924535,1738204242557,-500.0,0.00020016,2]
[350924536,1738204242570,-500.0,0.00020016,2]
[350924537,1738204242580,-500.0,0.00020016,2]
[350924538,1738204242589,-500.0,0.00020016,2]
[350924539,1738204242599,-500.0,0.00020016,2]
[350924540,1738204242610,-500.0,0.00020016,2]
[350924541,1738204242620,-500.0,0.00020016,2]
[350924542,1738204242630,-500.0,0.00020016,2]
[350924543,1738204242640,-500.0,0.00020016,2]
[350924544,1738204242650,-3704.868431,0.0002002,2]
[350924545,1738204242660,-3961.697379,0.0002002,2]
[350924546,1738204242670,-500.0,0.00020027,14]
[350924547,1738204242680,-500.0,0.00020027,14]
[350924548,1738204242690,-578.37168623,0.00020032,4]
[350924549,1738204242700,-172.51881802,0.00020032,4]
[350924550,1738204242710,-305.78201659,0.00020032,4]
[350924551,1738204242725,-500.0,0.00020035,7]
[350924552,1738204242735,-151.0,0.00020036,2]
[350924553,1738204242746,-151.0,0.00020036,2]
[350924554,1738204242759,-151.0,0.00020036,2]
[350924555,1738204242771,-151.698365,0.00020036,2]
[350924556,1738204242780,-150.0,0.00020038,4]
[350924557,1738204242790,-500.0,0.0002004,2]
[350924558,1738204242801,-578.37168623,0.00020048,4]
[350924559,1738204242811,-172.51881802,0.00020048,4]
[350924560,1738204242823,-305.78201659,0.00020048,4]
[350924561,1738204242834,-10000.0,0.00020048,2]
[350924562,1738204242844,-10000.0,0.00020048,2]
[350924563,1738204242855,-180.648189,0.00020048,2]
[350924564,1738204242866,-10000.0,0.00020048,2]
[350924565,1738204242876,-10000.0,0.00020048,2]
[350924566,1738204242888,-180.648189,0.00020048,2]
[350924567,1738204242898,-151.0,0.00020048,2]
[350924568,1738204242909,-151.0,0.00020048,2]
[350924569,1738204242920,-205.0642,0.0002005,2]
[350924570,1738204242929,-500.0,0.00020053,2]
[350924571,1738204242939,-500.0,0.00020053,2]
[350924572,1738204242949,-500.0,0.00020053,2]
[350924573,1738204242959,-580.67,0.00020053,2]
[350924574,1738204242968,-500.0,0.00020053,2]
[350924575,1738204242978,-1332.87,0.00020053,2]
[350924576,1738204242988,-3941.23,0.00020053,2]
[350924577,1738204242998,-1119.75,0.00020053,2]
[350924578,1738204243008,-500.0,0.00020053,2]
[350924579,1738204243017,-500.0,0.00020053,2]
[350924580,1738204243028,-500.0,0.00020053,2]
[350924581,1738204243037,-500.0,0.00020055,14]
[350924582,1738204243047,-500.0,0.00020055,14]
[350924583,1738204243056,-150.0,0.00020063,2]
[350924584,1738204243066,-500.0,0.00020063,2]
[350924585,1738204243075,-578.37168623,0.00020064,4]
[350924586,1738204243085,-172.51881802,0.00020064,4]
[350924587,1738204243095,-305.78201659,0.00020064,4]
[350924588,1738204243104,-500.0,0.00020068,2]
[350924589,1738204243113,-585.63985848,0.00020068,2]
[350924593,1738204243296,-502.71088331,0.00020073,2]
[350924594,1738204243310,-150.0,0.00020075,4]
[350924595,1738204243320,-578.37168623,0.0002008,4]
[350924596,1738204243330,-172.51881802,0.0002008,4]
[350924598,1738204243339,-305.78201659,0.0002008,4]
[350924600,1738204243348,-491.325237,0.00020082,2]
[350924601,1738204243358,-151.0,0.00020082,2]
[350924602,1738204243368,-491.325237,0.00020082,2]
[350924603,1738204243377,-562.33487396,0.00020082,14]
[350924604,1738204243387,-500.0,0.00020082,14]
[350924605,1738204243397,-1389.22,0.00020089,2]
[350924606,1738204243406,-500.0,0.00020095,2]
[350924607,1738204243416,-578.37168623,0.00020096,4]
[350924608,1738204243426,-172.51881802,0.00020096,4]
[350924609,1738204243436,-305.78201659,0.00020096,4]
[350924610,1738204243445,-151.0,0.00020102,2]
[350924611,1738204243454,-151.0,0.00020102,2]
[350924612,1738204243464,-500.0,0.0002011,14]
[350924613,1738204243474,-578.37168623,0.00020112,4]
[350924614,1738204243484,-172.51881802,0.00020112,4]
[350924615,1738204243493,-305.78201659,0.00020112,4]
[350924616,1738204243503,-150.0,0.00020113,4]
[350924617,1738204243512,-500.0,0.00020123,2]
[350924618,1738204243522,-578.37168623,0.00020128,4]
[350924619,1738204243532,-172.51881802,0.00020128,4]
[350924620,1738204243542,-305.78201659,0.00020128,4]
[350924621,1738204243551,-500.0,0.00020137,14]
[350924622,1738204243561,-578.37168623,0.00020144,4]
[350924623,1738204243571,-172.51881802,0.00020144,4]
[350924624,1738204243580,-305.78201659,0.00020144,4]
[350924625,1738204243589,-150.99,0.00020145,2]
[350924626,1738204243599,-500.0,0.0002015,2]
[350924627,1738204243609,-150.0,0.00020151,4]
[350924628,1738204243618,-500.0,0.00020153,2]
[350924629,1738204243627,-284.59,0.00020153,2]
[350924630,1738204243637,-643.3710052,0.00020153,2]
[350924631,1738204243647,-738.87,0.00020153,2]
[350924632,1738204243657,-521.53798048,0.00020153,2]
[350924633,1738204243667,-151.0,0.00020153,2]
[350924634,1738204243676,-900.94,0.00020153,2]
[350924635,1738204243686,-500.0,0.00020153,2]
[350924636,1738204243696,-500.0,0.00020153,2]
[350924637,1738204243706,-500.0,0.00020153,2]
[350924638,1738204243717,-584.86,0.00020153,2]
[350924639,1738204243730,-638.52320279,0.00020153,2]
[350924640,1738204243741,-300.0,0.00020153,2]
[350924641,1738204243751,-500.0,0.00020153,2]
[350924642,1738204243762,-3566.96,0.00020153,2]
[350924643,1738204243771,-500.0,0.00020153,2]
[350924644,1738204243781,-282.06212637,0.00020153,2]
[350924645,1738204243790,-393.53,0.00020153,2]
[350924646,1738204243801,-500.0,0.00020153,2]
[350924647,1738204243810,-500.0,0.00020153,2]
[350924648,1738204243819,-500.0,0.00020153,2]
[350924649,1738204243828,-500.0,0.00020153,2]
[350924650,1738204243838,-500.0,0.00020153,2]
[350924651,1738204243848,-500.0,0.00020153,2]
[350924652,1738204243858,-500.0,0.00020153,2]
[350924653,1738204243867,-578.37168623,0.0002016,4]
[350924654,1738204243877,-172.51881802,0.0002016,4]
[350924655,1738204243887,-305.78201659,0.0002016,4]
[350924656,1738204243896,-500.0,0.00020163,2]
[350924657,1738204243906,-500.0,0.00020164,14]
[350924658,1738204243916,-500.0,0.00020172,7]
[350924659,1738204243925,-151.0,0.00020173,2]
[350924660,1738204243935,-578.37168623,0.00020176,4]
[350924661,1738204243945,-172.51881802,0.00020176,4]
[350924662,1738204243955,-305.78201659,0.00020176,4]
[350924663,1738204243964,-741.13,0.00020186,2]
[350924664,1738204243974,-150.0,0.00020189,4]
[350924665,1738204243984,-500.0,0.0002019,2]
[350924666,1738204243994,-500.0,0.0002019,2]
[350924667,1738204244003,-549.24603092,0.0002019,2]
[350924668,1738204244013,-580.67,0.0002019,2]
[350924669,1738204244022,-500.0,0.0002019,2]
[350924670,1738204244034,-1332.87,0.0002019,2]
[350924671,1738204244044,-3941.23,0.0002019,2]
[350924672,1738204244054,-1119.75,0.0002019,2]
[350924673,1738204244064,-500.0,0.0002019,2]
[350924674,1738204244074,-500.0,0.0002019,2]
[350924675,1738204244084,-500.0,0.0002019,2]
[350924676,1738204244094,-300.0,0.0002019,2]
[350924677,1738204244106,-886.9580018,0.00020192,14]
[350924678,1738204244116,-578.37168623,0.00020192,4]
[350924679,1738204244125,-172.51881802,0.00020192,4]
[350924680,1738204244135,-305.78201659,0.00020192,4]
[350924681,1738204244145,-578.37168623,0.00020208,4]
[350924682,1738204244155,-172.51881802,0.00020208,4]
[350924683,1738204244166,-305.78201659,0.00020208,4]
[350924684,1738204244176,-4890.95881332,0.00020209,2]
[350924685,1738204244188,-5800.0,0.00020219,2]
[350924686,1738204244198,-578.37168623,0.00020224,4]
[350924687,1738204244208,-172.51881802,0.00020224,4]
[350924688,1738204244219,-305.78201659,0.00020224,4]
[350924689,1738204244228,-150.0,0.00020226,4]
[350924690,1738204244238,-150.0,0.00020226,4]
[350924691,1738204244248,-5800.0,0.00020228,2]
[350924692,1738204244258,-5800.0,0.00020236,2]
[350924693,1738204244268,-10000.0,0.0002024,2]
[350924694,1738204244278,-10000.0,0.0002024,2]
[350924695,1738204244287,-180.648189,0.0002024,2]
[350924696,1738204244297,-10000.0,0.0002024,2]
[350924697,1738204244307,-10000.0,0.0002024,2]
[350924698,1738204244316,-180.648189,0.0002024,2]
[350924699,1738204244325,-578.37168623,0.0002024,4]
[350924700,1738204244335,-172.51881802,0.0002024,4]
[350924701,1738204244345,-305.78201659,0.0002024,4]
[350924702,1738204244354,-155.78,0.00020244,2]
[350924703,1738204244364,-5800.0,0.00020245,2]
[350924704,1738204244373,-5800.0,0.00020253,2]
[350924705,1738204244383,-578.37168623,0.00020256,4]
[350924706,1738204244392,-172.51881802,0.00020256,4]
[350924707,1738204244401,-305.78201659,0.00020256,4]
[350924708,1738204244411,-5800.0,0.00020261,2]
[350924709,1738204244421,-500.0,0.00020263,2]
[350924710,1738204244430,-150.0,0.00020264,4]
[350924711,1738204244439,-500.0,0.00020269,7]
[350924712,1738204244448,-500.0,0.00020269,7]
[350924713,1738204244457,-5800.0,0.0002027,2]
[350924714,1738204244467,-578.37168623,0.00020272,4]
[350924715,1738204244477,-172.51881802,0.00020272,4]
[350924716,1738204244487,-305.78201659,0.00020272,4]
[350924717,1738204244496,-150.0,0.00020283,2]
[350924718,1738204244506,-578.37168623,0.00020288,4]
[350924719,1738204244515,-172.51881802,0.00020288,4]
[350924720,1738204244525,-305.78201659,0.00020288,4]
[350924721,1738204244535,-500.0,0.0002029,2]
[350924722,1738204244544,-284.59,0.0002029,2]
[350924723,1738204244553,-738.87,0.0002029,2]
[350924724,1738204244563,-900.94,0.0002029,2]
[350924725,1738204244573,-500.0,0.0002029,2]
[350924726,1738204244582,-488.98758855,0.0002029,2]
[350924727,1738204244591,-500.0,0.0002029,2]
[350924728,1738204244601,-584.86,0.0002029,2]
[350924729,1738204244611,-300.0,0.0002029,2]
[350924730,1738204244622,-151.0,0.0002029,2]
[350924731,1738204244633,-491.325237,0.0002029,2]
[350924732,1738204244644,-491.325237,0.0002029,2]
[350924733,1738204244655,-500.0,0.0002029,2]
[350924734,1738204244666,-3566.96,0.0002029,2]
[350924735,1738204244677,-500.0,0.0002029,2]
[350924736,1738204244688,-558.70779711,0.0002029,2]
[350924737,1738204244699,-500.0,0.0002029,2]
[350924738,1738204244710,-500.0,0.0002029,2]
[350924739,1738204244724,-500.0,0.0002029,2]
[350924740,1738204244735,-500.0,0.0002029,2]
[350924741,1738204244746,-500.0,0.0002029,2]
[350924742,1738204244758,-440.81342303,0.0002029,2]
[350924743,1738204244769,-150.0,0.00020302,4]
[350924744,1738204244780,-578.37168623,0.00020304,4]
[350924745,1738204244791,-172.51881802,0.00020304,4]
[350924746,1738204244801,-305.78201659,0.00020304,4]
[350924747,1738204244811,-500.0,0.00020309,7]
[350924748,1738204244820,-578.37168623,0.0002032,4]
[350924749,1738204244830,-172.51881802,0.0002032,4]
[350924750,1738204244840,-305.78201659,0.0002032,4]
[350924751,1738204244851,-150.0,0.00020323,2]
[350924752,1738204244862,-500.0,0.00020327,2]
[350924753,1738204244872,-500.0,0.00020327,2]
[350924754,1738204244881,-580.67,0.00020327,2]
[350924755,1738204244890,-622.72474276,0.00020327,2]
[350924756,1738204244899,-1332.87,0.00020327,2]
[350924757,1738204244909,-3941.23,0.00020327,2]
[350924758,1738204244919,-1119.75,0.00020327,2]
[350924759,1738204244930,-500.0,0.00020327,2]
[350924760,1738204244941,-500.0,0.00020327,2]
[350924761,1738204244951,-500.0,0.00020327,2]
[350924762,1738204244962,-578.37168623,0.00020336,4]
[350924763,1738204244972,-172.51881802,0.00020336,4]
[350924764,1738204244981,-305.78201659,0.00020336,4]
[350924765,1738204244991,-150.0,0.00020339,4]
[350924766,1738204245002,-150.0,0.0002035,2]
[350924767,1738204245012,-578.37168623,0.00020352,4]
[350924768,1738204245023,-172.51881802,0.00020352,4]
[350924769,1738204245034,-305.78201659,0.00020352,4]
[350924770,1738204245044,-585.63985848,0.00020357,2]
[350924771,1738204245053,-500.0,0.00020363,2]
[350924772,1738204245063,-578.37168623,0.00020368,4]
[350924773,1738204245073,-172.51881802,0.00020368,4]
[350924774,1738204245081,-305.78201659,0.00020368,4]
[350924775,1738204245091,-150.0,0.00020377,4]
[350924776,1738204245100,-578.37168623,0.00020384,4]
[350924777,1738204245110,-172.51881802,0.00020384,4]
[350924778,1738204245119,-305.78201659,0.00020384,4]
[350924779,1738204245128,-168.31739184,0.0002039,2]
[350924780,1738204245138,-578.37168623,0.000204,4]
[350924781,1738204245147,-172.51881802,0.000204,4]
[350924782,1738204245157,-305.78201659,0.000204,4]
[350924783,1738204245166,-205.90160185,0.000204,2]
[350924784,1738204245175,-150.0,0.00020412,2]
[350924785,1738204245184,-150.0,0.00020415,4]
[350924786,1738204245194,-578.37168623,0.00020416,4]
[350924787,1738204245203,-172.51881802,0.00020416,4]
[350924788,1738204245212,-305.78201659,0.00020416,4]
[350924789,1738204245221,-150.0,0.00020419,2]
[350924790,1738204245231,-500.0,0.00020427,2]
[350924791,1738204245240,-284.59,0.00020427,2]
[350924792,1738204245249,-738.87,0.00020427,2]
[350924793,1738204245258,-151.0,0.00020427,2]
[350924794,1738204245267,-900.94,0.00020427,2]
[350924795,1738204245276,-500.0,0.00020427,2]
[350924796,1738204245285,-500.0,0.00020427,2]
[350924797,1738204245294,-584.86,0.00020427,2]
[350924798,1738204245303,-300.0,0.00020427,2]
[350924799,1738204245312,-500.0,0.00020427,2]
[350924800,1738204245321,-3566.96,0.00020427,2]
[350924801,1738204245330,-10000.0,0.00020427,2]
[350924802,1738204245339,-10000.0,0.00020427,2]
[350924803,1738204245348,-10000.0,0.00020427,2]
[350924804,1738204245358,-180.648189,0.00020427,2]
[350924805,1738204245367,-10000.0,0.00020427,2]
[350924806,1738204245376,-180.648189,0.00020427,2]
[350924807,1738204245385,-500.0,0.00020427,2]
[350924808,1738204245394,-500.0,0.00020427,2]
[350924809,1738204245403,-500.0,0.00020427,2]
[350924810,1738204245412,-500.0,0.00020427,2]
[350924811,1738204245421,-500.0,0.00020427,2]
[350924812,1738204245431,-500.0,0.00020427,2]
[350924813,1738204245442,-578.37168623,0.00020432,4]
[350924814,1738204245453,-172.51881802,0.00020432,4]
[350924815,1738204245462,-305.78201659,0.00020432,4]
[350924816,1738204245471,-500.0,0.00020446,7]
[350924817,1738204245481,-151.0,0.00020447,2]
[350924818,1738204245490,-151.0,0.00020447,2]
[350924819,1738204245500,-578.37168623,0.00020448,4]
[350924820,1738204245509,-172.51881802,0.00020448,4]
[350924821,1738204245518,-305.78201659,0.00020448,4]
[350924822,1738204245527,-150.0,0.00020453,4]
[350924823,1738204245536,-150.0,0.00020453,4]
[350924824,1738204245546,-500.0,0.00020463,2]
[350924825,1738204245556,-578.37168623,0.00020464,4]
[350924826,1738204245565,-172.51881802,0.00020464,4]
[350924827,1738204245574,-305.78201659,0.00020464,4]
[350924828,1738204245583,-500.0,0.00020464,2]
[350924829,1738204245594,-500.0,0.00020464,2]
[350924830,1738204245604,-580.67,0.00020464,2]
[350924831,1738204245614,-1332.87,0.00020464,2]
[350924832,1738204245625,-3941.23,0.00020464,2]
[350924833,1738204245634,-1119.75,0.00020464,2]
[350924834,1738204245643,-500.0,0.00020464,2]
[350924835,1738204245653,-500.0,0.00020464,2]
[350924836,1738204245662,-500.0,0.00020464,2]
[350924837,1738204245672,-578.37168623,0.0002048,4]
[350924838,1738204245681,-172.51881802,0.0002048,4]
[350924839,1738204245691,-305.78201659,0.0002048,4]
[350924840,1738204245700,-150.0,0.0002049,4]
[350924841,1738204245710,-578.37168623,0.00020496,4]
[350924842,1738204245720,-172.51881802,0.00020496,4]
[350924843,1738204245732,-305.78201659,0.00020496,4]
[350924844,1738204245742,-151.0,0.00020496,2]
[350924845,1738204245794,-491.325237,0.00020496,2]
[350924846,1738204245806,-491.325237,0.00020496,2]
[350924847,1738204245815,-3000.0,0.000205,2]
[350924848,1738204245826,-578.37168623,0.00020512,4]
[350924849,1738204245835,-172.51881802,0.00020512,4]
[350924850,1738204245845,-305.78201659,0.00020512,4]
[350924851,1738204245854,-223.39957345,0.00020521,2]
[350924852,1738204245862,-500.75518594,0.00020521,2]
[350924853,1738204245873,-500.0,0.00020522,7]
[350924854,1738204245893,-501.0,0.00020527,2]
[350924855,1738204245912,-578.37168623,0.00020528,4]
[350924856,1738204245921,-172.51881802,0.00020528,4]
[350924857,1738204245930,-305.78201659,0.00020528,4]
[350924858,1738204245939,-150.0,0.00020528,4]
[350924859,1738204245948,-500.0,0.00020543,7]
[350924860,1738204245958,-500.0,0.00020543,7]
[350924861,1738204245967,-578.37168623,0.00020544,4]
[350924862,1738204245976,-172.51881802,0.00020544,4]
[350924863,1738204245986,-305.78201659,0.00020544,4]
[350924864,1738204245994,-527.25,0.00020547,2]
[350924865,1738204246003,-527.25,0.00020547,2]
[350924866,1738204246013,-527.25,0.00020547,2]
[350924867,1738204246024,-527.25,0.00020547,2]
[350924868,1738204246035,-527.25,0.00020547,2]
[350924869,1738204246045,-780.27,0.00020548,2]
[350924870,1738204246055,-578.37168623,0.0002056,4]
[350924871,1738204246064,-172.51881802,0.0002056,4]
[350924872,1738204246073,-305.78201659,0.0002056,4]
[350924873,1738204246082,-554.57596061,0.00020563,2]
[350924874,1738204246094,-500.0,0.00020564,2]
[350924875,1738204246103,-284.59,0.00020564,2]
[350924876,1738204246112,-738.87,0.00020564,2]
[350924877,1738204246121,-900.94,0.00020564,2]
[350924878,1738204246130,-500.0,0.00020564,2]
[350924879,1738204246139,-500.0,0.00020564,2]
[350924880,1738204246149,-584.86,0.00020564,2]
[350924881,1738204246159,-300.0,0.00020564,2]
[350924882,1738204246168,-500.0,0.00020564,2]
[350924883,1738204246178,-3566.96,0.00020564,2]
[350924884,1738204246187,-500.0,0.00020564,2]
[350924885,1738204246197,-527.25,0.00020564,2]
[350924887,1738204246206,-500.0,0.00020564,2]
[350924888,1738204246216,-500.0,0.00020564,2]
[350924889,1738204246227,-460.9021231,0.00020564,2]
[350924890,1738204246236,-500.0,0.00020564,2]
[350924891,1738204246246,-500.0,0.00020564,2]
[350924892,1738204246255,-150.0,0.00020566,4]
[350924893,1738204246264,-150.0,0.00020576,2]
[350924894,1738204246273,-578.37168623,0.00020576,4]
[350924895,1738204246282,-172.51881802,0.00020576,4]
[350924896,1738204246291,-305.78201659,0.00020576,4]
[350924897,1738204246300,-348.51196848,0.00020583,7]
[350924898,1738204246309,-151.0,0.00020583,2]
[350924899,1738204246318,-578.37168623,0.00020592,4]
[350924900,1738204246327,-172.51881802,0.00020592,4]
[350924901,1738204246336,-305.78201659,0.00020592,4]
[350924902,1738204246346,-3798.97749238,0.00020601,2]
[350924903,1738204246356,-500.0,0.00020601,2]
[350924904,1738204246365,-500.0,0.00020601,2]
[350924905,1738204246374,-580.67,0.00020601,2]
[350924906,1738204246384,-1332.87,0.00020601,2]
[350924907,1738204246393,-3941.23,0.00020601,2]
[350924908,1738204246403,-1119.75,0.00020601,2]
[350924909,1738204246412,-500.0,0.00020601,2]
[350924910,1738204246422,-500.0,0.00020601,2]
[350924911,1738204246431,-500.0,0.00020601,2]
[350924912,1738204246441,-150.0,0.00020603,4]
[350924913,1738204246450,-578.37168623,0.00020608,4]
[350924914,1738204246460,-172.51881802,0.00020608,4]
[350924915,1738204246469,-305.78201659,0.00020608,4]
[350924916,1738204246479,-2431.93293356,0.0002061,2]
[350924917,1738204246489,-221.0,0.00020621,2]
[350924918,1738204246499,-578.37168623,0.00020624,4]
[350924919,1738204246508,-172.51881802,0.00020624,4]
[350924920,1738204246518,-305.78201659,0.00020624,4]
[350924921,1738204246527,-152.0,0.00020625,3]
[350924922,1738204246537,-150.0,0.00020628,2]
[350924923,1738204246546,-578.37168623,0.0002064,4]
[350924924,1738204246556,-172.51881802,0.0002064,4]
[350924925,1738204246566,-305.78201659,0.0002064,4]
[350924926,1738204246575,-150.0,0.00020641,4]
[350924927,1738204246590,-585.63985848,0.00020645,2]
[350924928,1738204246611,-578.37168623,0.00020656,4]
[350924929,1738204246620,-172.51881802,0.00020656,4]
[350924930,1738204246630,-305.78201659,0.00020656,4]
[350924931,1738204246639,-578.37168623,0.00020672,4]
[350924932,1738204246648,-172.51881802,0.00020672,4]
[350924933,1738204246658,-305.78201659,0.00020672,4]
[350924934,1738204246668,-150.0,0.00020679,4]
[350924935,1738204246677,-150.0,0.00020679,4]
[350924936,1738204246686,-150.0,0.00020685,2]
[350924937,1738204246695,-150.0,0.00020685,2]
[350924938,1738204246704,-150.0,0.00020685,2]
[350924939,1738204246716,-300.19,0.00020685,2]
[350924940,1738204246725,-438.27,0.00020685,2]
[350924941,1738204246735,-402.15,0.00020685,2]
[350924942,1738204246745,-1965.4,0.00020685,2]
[350924943,1738204246755,-150.0,0.00020685,2]
[350924944,1738204246764,-300.0,0.00020685,2]
[350924945,1738204246773,-438.27,0.00020685,2]
[350924946,1738204246782,-150.0,0.00020685,2]
[350924947,1738204246794,-150.0,0.00020685,2]
[350924948,1738204246805,-437.82,0.00020685,2]
[350924949,1738204246815,-150.0,0.00020685,2]
[350924950,1738204246825,-578.37168623,0.00020688,4]
[350924951,1738204246835,-172.51881802,0.00020688,4]
[350924952,1738204246846,-305.78201659,0.00020688,4]
[350924953,1738204246855,-3798.97749234,0.0002069,2]
[350924954,1738204246864,-2393.15624977,0.000207,2]
[350924955,1738204246873,-151.0,0.000207,2]
[350924956,1738204246883,-10000.0,0.000207,2]
[350924957,1738204246892,-10000.0,0.000207,2]
[350924958,1738204246902,-10000.0,0.000207,2]
[350924959,1738204246911,-180.648189,0.000207,2]
[350924960,1738204246920,-10000.0,0.000207,2]
[350924961,1738204246930,-180.648189,0.000207,2]
[350924962,1738204246939,-500.0,0.00020701,2]
[350924963,1738204246949,-284.59,0.00020701,2]
[350924964,1738204246958,-738.87,0.00020701,2]
[350924965,1738204246967,-900.94,0.00020701,2]
[350924966,1738204246977,-500.0,0.00020701,2]
[350924967,1738204246986,-500.0,0.00020701,2]
[350924968,1738204246996,-584.86,0.00020701,2]
[350924969,1738204247005,-300.0,0.00020701,2]
[350924970,1738204247015,-151.0,0.00020701,2]
[350924971,1738204247024,-491.325237,0.00020701,2]
[350924972,1738204247034,-491.325237,0.00020701,2]
[350924973,1738204247043,-500.0,0.00020701,2]
[350924974,1738204247053,-3566.96,0.00020701,2]
[350924975,1738204247062,-500.0,0.00020701,2]
[350924976,1738204247072,-527.25,0.00020701,2]
[350924977,1738204247082,-500.0,0.00020701,2]
[350924978,1738204247091,-500.0,0.00020701,2]
[350924979,1738204247100,-500.0,0.00020701,2]
[350924980,1738204247109,-197.74284366,0.00020701,2]
[350924981,1738204247118,-578.37168623,0.00020704,4]
[350924982,1738204247127,-172.51881802,0.00020704,4]
[350924983,1738204247137,-305.78201659,0.00020704,4]
[350924984,1738204247146,-150.0,0.00020717,4]
[350924985,1738204247155,-578.37168623,0.0002072,4]
[350924986,1738204247165,-172.51881802,0.0002072,4]
[350924987,1738204247174,-305.78201659,0.0002072,4]
[350924988,1738204247183,-151.0,0.00020721,2]
[350924989,1738204247193,-151.0,0.00020721,2]
[350924990,1738204247202,-578.37168623,0.00020736,4]
[350924991,1738204247211,-172.51881802,0.00020736,4]
[350924992,1738204247221,-305.78201659,0.00020736,4]
[350924993,1738204247231,-500.0,0.00020738,2]
[350924994,1738204247240,-500.0,0.00020738,2]
[350924995,1738204247250,-580.67,0.00020738,2]